fUST/lending_fUST_20240428
["ID","MTS","AMOUNT","RATE_DAILY","PERIOD"]
[323760233,1714252331276,-500.0,0.00039726,30]
[323760234,1714252331300,-500.0,0.00039726,30]
[323760235,1714252331324,-2925.99,0.00039726,30]
[323760236,1714252331347,-1740.82,0.00039726,30]
[323760237,1714252331370,-504.14760052,0.00039726,30]
[323760238,1714252331394,-500.0,0.00039726,20]
[323760239,1714252331418,-559.49137209,0.00039726,30]
[323760240,1714252331443,-855.84,0.00039726,30]
[323760241,1714252331468,-500.0,0.00039726,30]
[323760242,1714252331605,-902.08,0.00039726,30]
[323760243,1714252331631,-1231.18,0.00039726,30]
[323760244,1714252331655,-4054.59,0.00039726,30]
[323760245,1714252331680,-654.33,0.00039726,30]
[323760246,1714252331714,-500.0,0.00039726,30]
[323760247,1714252331739,-818.38,0.00039726,30]
[323760248,1714252331764,-28103.97,0.00039726,30]
[323760249,1714252331790,-500.0,0.00039726,30]
[323760250,1714252331816,-500.0,0.00039726,30]
[323760251,1714252331841,-857.63,0.00039726,30]
[323760252,1714252331867,-500.0,0.00039726,30]
[323760253,1714252331891,-172.62077538,0.00039726,30]
[323760254,1714252331914,-500.0,0.00039726,31]
[323760255,1714252331939,-500.0,0.00039726,32]
[323760256,1714252331964,-500.0,0.00039726,33]
[323760257,1714252331987,-500.0,0.00039726,30]
[323760258,1714252332011,-500.0,0.00039726,34]
[323760259,1714252332034,-500.0,0.00039726,35]
[323760260,1714252332057,-500.0,0.00039726,36]
[323760261,1714252332082,-675.96,0.00039726,30]
[323760262,1714252332105,-500.0,0.00039726,37]
[323760263,1714252332131,-500.0,0.00039726,38]
[323760264,1714252332156,-2220.16,0.00039726,30]
[323760265,1714252332182,-500.0,0.00039726,39]
[323760266,1714252332207,-500.0,0.00039726,30]
[323760267,1714252332230,-500.0,0.00039726,40]
[323760268,1714252332255,-500.0,0.00039726,41]
[323760269,1714252332279,-500.0,0.00039726,42]
[323760270,1714252332304,-500.0,0.00039726,43]
[323760271,1714252332327,-500.0,0.00039726,44]
[323760272,1714252332351,-500.0,0.00039726,45]
[323760273,1714252332374,-500.0,0.00039726,46]
[323760274,1714252332398,-500.0,0.00039726,47]
[323760275,1714252332421,-500.0,0.00039726,48]
[323760276,1714252332446,-500.0,0.00039726,30]
[323760277,1714252332471,-523.57230507,0.00039726,49]
[323760278,1714252332495,-313.0985734,0.00039726,30]
[323760279,1714252332519,-500.0,0.00039726,30]
[323760280,1714252332543,-500.0,0.00039726,30]
[323760281,1714252332567,-500.0,0.00039726,30]
[323760282,1714252332592,-500.0,0.00039726,30]
[323760283,1714252332616,-500.0,0.00039726,30]
[323760284,1714252332640,-201.05787135,0.00039726,30]
[323760285,1714252332665,-5921.41,0.00039726,30]
[323760286,1714252332690,-1475.85,0.00039726,30]
[323760287,1714252332716,-756.39,0.00039726,30]
[323760288,1714252332742,-504.37,0.00039726,30]
[323760289,1714252332766,-514.5940276,0.00039726,30]
[323760290,1714252332791,-500.0,0.00039726,30]
[323760291,1714252332816,-500.0,0.00039726,30]
[323760292,1714252332841,-1375.95,0.00039726,30]
[323760293,1714252332867,-500.0,0.00039726,30]
[323760294,1714252332892,-710.32,0.00039726,30]
[323760295,1714252332916,-500.0,0.00039726,30]
[323760296,1714252332940,-1489.54,0.00039726,30]
[323760297,1714252332965,-1102.9,0.00039726,30]
[323760298,1714252332990,-889.9,0.00039726,30]
[323760299,1714252333015,-500.0,0.00039726,30]
[323760300,1714252333039,-519.76,0.00039726,30]
[323760301,1714252333064,-21659.95,0.00039726,30]
[323760302,1714252333088,-595.13,0.00039726,30]
[323760303,1714252333114,-504.27221391,0.00039726,30]
[323760304,1714252333143,-3344.28,0.00039726,30]
[323760305,1714252333169,-500.0,0.00039726,30]
[323760306,1714252333193,-503.62595829,0.00039726,30]
[323760307,1714252333219,-500.0,0.00039726,30]
[323760308,1714252333243,-690.82,0.00039726,30]
[323760309,1714252333266,-500.0,0.00039726,30]
[323760310,1714252333290,-500.0,0.00039726,30]
[323760311,1714252333314,-1796.37,0.00039726,30]
[323760312,1714252333337,-500.0,0.00039726,30]
[323760313,1714252333362,-500.0,0.00039726,30]
[323760314,1714252333386,-500.0,0.00039726,30]
[323760315,1714252333409,-500.0,0.00039726,30]
[323760316,1714252333433,-753.84,0.00039726,30]
[323760317,1714252333546,-500.0,0.00039726,30]
[323760318,1714252333589,-500.0,0.00039726,30]
[323760319,1714252333612,-500.0,0.00039726,30]
[323760320,1714252333635,-500.0,0.00039726,30]
[323760321,1714252333658,-500.0,0.00039726,30]
[323760322,1714252333682,-500.0,0.00039726,30]
[323760323,1714252333706,-36764.6,0.00039726,30]
[323760324,1714252333729,-1004.29,0.00039726,30]
[323760325,1714252333752,-2157.54,0.00039726,30]
[323760326,1714252333775,-500.0,0.00039726,30]
[323760327,1714252333799,-500.0,0.00039726,30]
[323760328,1714252333823,-2765.06,0.00039726,30]
[323760329,1714252333847,-500.0,0.00039726,30]
[323760330,1714252333871,-502.77578201,0.00039726,30]
[323760331,1714252333897,-2618.96,0.00039726,30]
[323760332,1714252333920,-1308.84,0.00039726,30]
[323760333,1714252333943,-500.0,0.00039726,30]
[323760334,1714252333968,-500.0,0.00039726,30]
[323760335,1714252333991,-767.26,0.00039726,30]
[323760336,1714252334015,-5243.6,0.00039726,21]
[323760337,1714252334039,-153.32395492,0.00039768,32]
[323760338,1714252334063,-1815.0,0.000399,15]
[323760339,1714252334087,-205722.49212407,0.000399,30]
[323760340,1714252356295,-230.0832566,0.000275,17]
[323760341,1714252357368,-159.09380235,0.00035,30]
[323760342,1714252357396,-154.81422293,0.00035,15]
[323760343,1714252357982,-1551.47,0.00039726,30]
[323760344,1714252358009,-500.0,0.00039726,30]
[323760345,1714252358036,-500.0,0.00039726,30]
[323760346,1714252358066,-1595.4,0.00039726,30]
[323760347,1714252358092,-1163.33,0.00039726,30]
[323760348,1714252358119,-500.0,0.00039726,30]
[323760349,1714252358144,-1612.51,0.00039726,30]
[323760350,1714252358172,-1336.15,0.00039726,30]
[323760351,1714252358198,-1448.09,0.00039726,30]
[323760352,1714252358223,-500.0,0.00039726,30]
[323760353,1714252358248,-571.81219503,0.00039726,30]
[323760354,1714252358273,-762.68,0.00039726,30]
[323760355,1714252358297,-9678.82,0.00039726,30]
[323760356,1714252358322,-500.0,0.00039726,30]
[323760357,1714252358346,-409.40201239,0.00039726,30]
[323760358,1714252358370,-500.0,0.00039726,30]
[323760359,1714252358399,-605.0,0.00039726,30]
[323760360,1714252358423,-500.0,0.00039726,30]
[323760361,1714252358448,-147678.46630177,0.000399,30]
[323760362,1714252358471,-1815.0,0.000399,15]
[323760363,1714252358497,-1815.0,0.000399,15]
[323760364,1714252358526,-210.09817641,0.0004,120]
[323760365,1714252358549,-16013.3614392,0.0004,15]
[323760366,1714252358573,-200.0,0.0004,31]
[323760367,1714252358597,-500.0,0.0004,31]
[323760368,1714252358620,-500.0,0.0004,31]
[323760369,1714252358643,-495.31890524,0.0004,31]
[323760370,1714252358667,-500.0,0.0004,31]
[323760371,1714252358692,-500.0,0.0004,31]
[323760372,1714252358715,-500.0,0.0004,31]
[323760373,1714252358740,-500.0,0.0004,31]
[323760374,1714252358766,-500.0,0.0004,31]
[323760375,1714252358789,-500.0,0.0004,31]
[323760376,1714252358813,-500.0,0.0004,31]
[323760377,1714252358841,-500.0,0.0004,31]
[323760378,1714252358866,-535.14494302,0.0004,31]
[323760379,1714252358890,-453.9079122,0.0004,31]
[323760380,1714252358914,-2198.23,0.0004,31]
[323760381,1714252358938,-797.6,0.0004,31]
[323760382,1714252358963,-1102.1,0.0004,31]
[323760383,1714252358988,-1072.06,0.0004,120]
[323760384,1714252359017,-500.0,0.0004,31]
[323760385,1714252359043,-500.0,0.0004,31]
[323760386,1714252359068,-500.0,0.0004,31]
[323760387,1714252359092,-500.0,0.0004,31]
[323760388,1714252359116,-500.0,0.0004,31]
[323760389,1714252359142,-500.0,0.0004,31]
[323760390,1714252359166,-500.0,0.0004,31]
[323760391,1714252359190,-500.0,0.0004,31]
[323760392,1714252359217,-500.0,0.0004,31]
[323760393,1714252359243,-500.0,0.0004,31]
[323760394,1714252359270,-500.0,0.0004,31]
[323760395,1714252359293,-500.0,0.0004,31]
[323760396,1714252359317,-500.0,0.0004,31]
[323760397,1714252359341,-500.0,0.0004,31]
[323760398,1714252359365,-500.0,0.0004,31]
[323760399,1714252359389,-521.42424688,0.0004,31]
[323760400,1714252359414,-500.0,0.0004,31]
[323760401,1714252359450,-425.72689394,0.0004,31]
[323760402,1714252359479,-500.0,0.0004,31]
[323760403,1714252359505,-465.59522997,0.0004,31]
[323760404,1714252359682,-822.51,0.0004,31]
[323760405,1714252359707,-500.0,0.0004,31]
[323760406,1714252359731,-500.0,0.0004,31]
[323760407,1714252359756,-500.0,0.0004,31]
[323760408,1714252359782,-500.0,0.0004,31]
[323760409,1714252359806,-500.0,0.0004,31]
[323760410,1714252359830,-500.0,0.0004,31]
[323760411,1714252359855,-500.0,0.0004,31]
[323760412,1714252359880,-788.14,0.0004,31]
[323760413,1714252359905,-500.0,0.0004,31]
[323760414,1714252359930,-500.0,0.0004,31]
[323760415,1714252359956,-500.0,0.0004,31]
[323760416,1714252359980,-500.0,0.0004,31]
[323760417,1714252360005,-500.0,0.0004,31]
[323760418,1714252360030,-500.0,0.0004,31]
[323760419,1714252360054,-500.0,0.0004,31]
[323760420,1714252360078,-500.0,0.0004,31]
[323760421,1714252360103,-500.0,0.0004,31]
[323760422,1714252360127,-500.0,0.0004,31]
[323760423,1714252360153,-500.0,0.0004,31]
[323760424,1714252360179,-500.0,0.0004,31]
[323760425,1714252360203,-619.59,0.0004,31]
[323760426,1714252360228,-500.0,0.0004,31]
[323760427,1714252360254,-500.0,0.0004,31]
[323760428,1714252360287,-500.0,0.0004,31]
[323760429,1714252360313,-643.51,0.0004,31]
[323760430,1714252360338,-500.0,0.0004,31]
[323760431,1714252360366,-500.0,0.0004,30]
[323760432,1714252360390,-500.0,0.0004,31]
[323760433,1714252360415,-500.0,0.0004,31]
[323760434,1714252360442,-631.2274178,0.0004,31]
[323760435,1714252360468,-500.0,0.0004,31]
[323760436,1714252360493,-543.16511177,0.0004,31]
[323760437,1714252360518,-500.0,0.0004,31]
[323760438,1714252360547,-500.0,0.0004,31]
[323760439,1714252360574,-500.0,0.0004,31]
[323760440,1714252360599,-500.0,0.0004,31]
[323760441,1714252360627,-500.0,0.0004,31]
[323760442,1714252360654,-500.0,0.0004,31]
[323760443,1714252360680,-500.0,0.0004,31]
[323760444,1714252360704,-500.0,0.0004,31]
[323760445,1714252360730,-500.0,0.0004,31]
[323760446,1714252360755,-500.0,0.0004,31]
[323760447,1714252360781,-500.0,0.0004,31]
[323760448,1714252360807,-500.0,0.0004,31]
[323760449,1714252360834,-500.0,0.0004,31]
[323760450,1714252360859,-500.0,0.0004,31]
[323760451,1714252360882,-500.0,0.0004,31]
[323760452,1714252360909,-500.0,0.0004,31]
[323760453,1714252360935,-747.06,0.0004,31]
[323760454,1714252360961,-502.33881432,0.0004,31]
[323760455,1714252360986,-500.71824776,0.0004,31]
[323760456,1714252361012,-1000.0,0.0004,31]
[323760457,1714252361037,-529.54606656,0.0004,31]
[323760458,1714252361063,-500.0,0.0004,31]
[323760459,1714252361088,-500.0,0.0004,31]
[323760460,1714252361112,-500.0,0.0004,31]
[323760461,1714252361138,-500.0,0.0004,31]
[323760462,1714252361163,-500.0,0.0004,31]
[323760463,1714252361188,-493.84030213,0.0004,31]
[323760464,1714252361212,-481.75173186,0.0004,31]
[323760465,1714252361333,-680.78,0.0004,31]
[323760466,1714252361360,-500.0,0.0004,31]
[323760467,1714252361385,-500.0,0.0004,31]
[323760468,1714252361409,-500.0,0.0004,31]
[323760469,1714252361433,-500.0,0.0004,31]
[323760470,1714252361457,-500.0,0.0004,31]
[323760471,1714252361483,-500.0,0.0004,31]
[323760472,1714252361506,-500.0,0.0004,31]
[323760473,1714252361530,-500.0,0.0004,31]
[323760474,1714252361554,-500.0,0.0004,31]
[323760475,1714252361578,-500.0,0.0004,31]
[323760476,1714252361602,-500.0,0.0004,31]
[323760477,1714252361627,-500.0,0.0004,31]
[323760478,1714252361655,-500.0,0.0004,31]
[323760479,1714252361682,-500.0,0.0004,31]
[323760480,1714252361709,-500.0,0.0004,31]
[323760481,1714252361734,-500.0,0.0004,31]
[323760482,1714252361763,-500.0,0.0004,31]
[323760483,1714252361792,-799.11,0.0004,31]
[323760484,1714252361819,-1010.67,0.0004,31]
[323760485,1714252361843,-500.0,0.0004,31]
[323760486,1714252361881,-500.0,0.0004,31]
[323760487,1714252361910,-1290.8,0.0004,31]
[323760488,1714252361940,-540.54,0.0004,31]
[323760489,1714252361968,-500.0,0.0004,31]
[323760490,1714252361997,-500.0,0.0004,31]
[323760491,1714252362025,-500.0,0.0004,31]
[323760492,1714252362054,-500.0,0.0004,31]
[323760493,1714252362084,-500.0,0.0004,31]
[323760494,1714252362111,-500.0,0.0004,31]
[323760495,1714252362139,-500.0,0.0004,31]
[323760496,1714252362166,-500.0,0.0004,31]
[323760497,1714252362203,-2791.65,0.0004,31]
[323760498,1714252362235,-500.0,0.0004,31]
[323760499,1714252362264,-500.0,0.0004,31]
[323760500,1714252362291,-500.0,0.0004,31]
[323760501,1714252362318,-500.0,0.0004,31]
[323760502,1714252362346,-738.83,0.0004,31]
[323760503,1714252362372,-500.0,0.0004,31]
[323760504,1714252362398,-500.0,0.0004,31]
[323760505,1714252362424,-500.0,0.0004,31]
[323760506,1714252362449,-500.0,0.0004,31]
[323760507,1714252362475,-500.0,0.0004,31]
[323760508,1714252362500,-1473.62,0.0004,31]
[323760509,1714252362525,-520.27413583,0.0004,31]
[323760510,1714252362549,-500.0,0.0004,31]
[323760511,1714252362575,-500.0,0.0004,31]
[323760512,1714252362600,-500.0,0.0004,31]
[323760513,1714252362624,-500.0,0.0004,31]
[323760514,1714252362649,-500.0,0.0004,31]
[323760515,1714252362673,-575.28574162,0.0004,31]
[323760516,1714252362699,-500.0,0.0004,31]
[323760517,1714252362724,-500.0,0.0004,31]
[323760518,1714252362749,-830.76,0.0004,31]
[323760519,1714252362773,-500.0,0.0004,31]
[323760520,1714252362798,-500.0,0.0004,31]
[323760521,1714252362823,-500.0,0.0004,31]
[323760522,1714252362848,-500.0,0.0004,31]
[323760523,1714252362873,-1327.99,0.0004,31]
[323760524,1714252362898,-653.44,0.0004,31]
[323760525,1714252363044,-1022.29,0.0004,31]
[323760526,1714252363071,-891.38,0.0004,31]
[323760527,1714252363098,-546.59,0.0004,31]
[323760528,1714252363123,-500.0,0.0004,31]
[323760529,1714252363152,-341.59141469,0.0004,31]
[323760530,1714252363178,-500.0,0.0004,31]
[323760531,1714252363204,-596.38686177,0.0004,31]
[323760532,1714252363231,-500.0,0.0004,31]
[323760533,1714252363256,-568.44505014,0.0004,31]
[323760534,1714252363281,-500.0,0.0004,31]
[323760535,1714252363307,-500.0,0.0004,31]
[323760536,1714252363334,-500.0,0.0004,31]
[323760537,1714252363359,-153.60992058,0.0004,31]
[323760538,1714252363384,-388.1940088,0.0004,31]
[323760539,1714252363411,-500.0,0.0004,31]
[323760540,1714252363437,-1339.82,0.0004,31]
[323760541,1714252363463,-504.57277822,0.0004,31]
[323760542,1714252363488,-500.0,0.0004,31]
[323760543,1714252363513,-518.06541702,0.0004,31]
[323760544,1714252363538,-1586.5,0.0004,31]
[323760545,1714252363563,-500.0,0.0004,31]
[323760546,1714252363590,-824.0,0.0004,31]
[323760547,1714252363615,-500.0,0.0004,31]
[323760548,1714252363640,-500.0,0.0004,31]
[323760549,1714252363667,-500.0,0.0004,31]
[323760550,1714252363692,-500.0,0.0004,31]
[323760551,1714252363717,-500.0,0.0004,31]
[323760552,1714252363743,-500.0,0.0004,31]
[323760553,1714252363768,-500.0,0.0004,31]
[323760554,1714252363793,-1339.73,0.0004,31]
[323760555,1714252363817,-500.0,0.0004,31]
[323760556,1714252363842,-722.19,0.0004,31]
[323760557,1714252363868,-500.0,0.0004,31]
[323760558,1714252363893,-500.0,0.0004,31]
[323760559,1714252363919,-539.8756892,0.0004,31]
[323760560,1714252363945,-528.27755173,0.0004,31]
[323760561,1714252363971,-500.0,0.0004,31]
[323760562,1714252363999,-500.0,0.0004,31]
[323760563,1714252364031,-2341.24,0.0004,31]
[323760564,1714252364055,-500.0,0.0004,31]
[323760565,1714252364081,-500.0,0.0004,31]
[323760566,1714252364105,-500.0,0.0004,31]
[323760567,1714252364131,-760.85,0.0004,31]
[323760568,1714252364158,-500.0,0.0004,31]
[323760569,1714252364185,-500.0,0.0004,31]
[323760570,1714252364212,-500.0,0.0004,31]
[323760571,1714252364237,-500.0,0.0004,31]
[323760572,1714252364262,-500.0,0.0004,31]
[323760573,1714252364286,-538.47281317,0.0004,31]
[323760574,1714252364312,-500.0,0.0004,31]
[323760575,1714252364337,-500.0,0.0004,31]
[323760576,1714252364361,-535.5,0.0004,31]
[323760577,1714252364387,-500.0,0.0004,31]
[323760578,1714252364412,-500.0,0.0004,31]
[323760579,1714252364438,-386.11167714,0.0004,31]
[323760580,1714252364462,-2690.9,0.0004,31]
[323760581,1714252364488,-500.0,0.0004,31]
[323760582,1714252364512,-500.0,0.0004,31]
[323760583,1714252364628,-798.97,0.0004,31]
[323760584,1714252364652,-500.0,0.0004,31]
[323760585,1714252364677,-500.0,0.0004,31]
[323760586,1714252364700,-500.0,0.0004,31]
[323760587,1714252364725,-500.0,0.0004,31]
[323760588,1714252364750,-899.58,0.0004,31]
[323760589,1714252364774,-500.0,0.0004,31]
[323760590,1714252364798,-582.02,0.0004,31]
[323760591,1714252364823,-500.0,0.0004,31]
[323760592,1714252364846,-722.0,0.0004,31]
[323760593,1714252364870,-560.75,0.0004,31]
[323760594,1714252364894,-1009.14,0.0004,31]
[323760595,1714252364919,-604.43,0.0004,31]
[323760596,1714252364943,-500.0,0.0004,31]
[323760597,1714252364969,-500.0,0.0004,31]
[323760598,1714252364993,-1161.1,0.0004,31]
[323760599,1714252365018,-500.0,0.0004,31]
[323760600,1714252365043,-514.33505832,0.0004,31]
[323760601,1714252365067,-500.0,0.0004,31]
[323760602,1714252365092,-500.0,0.0004,31]
[323760603,1714252365117,-828.44,0.0004,31]
[323760604,1714252365142,-500.0,0.0004,31]
[323760605,1714252365168,-500.0,0.0004,31]
[323760606,1714252365192,-505.80101806,0.0004,31]
[323760607,1714252365217,-500.0,0.0004,31]
[323760608,1714252365244,-707.55,0.0004,31]
[323760609,1714252365269,-500.0,0.0004,31]
[323760610,1714252365294,-500.0,0.0004,31]
[323760611,1714252365319,-3277.64,0.0004,31]
[323760612,1714252365343,-500.0,0.0004,31]
[323760613,1714252365367,-2782.16,0.0004,31]
[323760614,1714252365391,-500.0,0.0004,31]
[323760615,1714252365415,-500.0,0.0004,31]
[323760616,1714252365440,-524.23,0.0004,31]
[323760617,1714252365464,-500.0,0.0004,31]
[323760618,1714252365489,-500.0,0.0004,31]
[323760619,1714252365513,-2381.08,0.0004,31]
[323760620,1714252365539,-500.0,0.0004,31]
[323760621,1714252365564,-500.0,0.0004,31]
[323760622,1714252365589,-501.94852286,0.0004,31]
[323760623,1714252365613,-636.16,0.0004,31]
[323760624,1714252365656,-1416.83,0.0004,31]
[323760625,1714252365681,-577.52,0.0004,31]
[323760626,1714252365707,-2057.12,0.0004,31]
[323760627,1714252365733,-890.89,0.0004,31]
[323760628,1714252365759,-500.0,0.0004,31]
[323760629,1714252365784,-500.0,0.0004,31]
[323760630,1714252365809,-500.0,0.0004,31]
[323760631,1714252365833,-500.0,0.0004,31]
[323760632,1714252365859,-500.0,0.0004,31]
[323760633,1714252365885,-557.32369489,0.0004,31]
[323760634,1714252365911,-500.0,0.0004,31]
[323760635,1714252365938,-500.0,0.0004,31]
[323760636,1714252365963,-500.0,0.0004,31]
[323760637,1714252365991,-646.92,0.0004,31]
[323760638,1714252366111,-500.0,0.0004,31]
[323760639,1714252366142,-500.0,0.0004,31]
[323760640,1714252366167,-500.0,0.0004,31]
[323760641,1714252366192,-151.0,0.0004,31]
[323760642,1714252366217,-1134.45,0.0004,31]
[323760643,1714252366244,-500.0,0.0004,31]
[323760644,1714252366271,-500.0,0.0004,31]
[323760645,1714252366301,-557.6,0.0004,31]
[323760646,1714252366327,-500.0,0.0004,31]
[323760647,1714252366353,-3418.05,0.0004,31]
[323760648,1714252366381,-500.0,0.0004,31]
[323760649,1714252366407,-500.0,0.0004,31]
[323760650,1714252366433,-500.0,0.0004,31]
[323760651,1714252366461,-500.0,0.0004,31]
[323760652,1714252366487,-501.17072056,0.0004,31]
[323760653,1714252366512,-1000.0,0.0004,30]
[323760654,1714252366536,-623.32,0.0004,31]
[323760655,1714252366560,-462.61088325,0.0004,31]
[323760656,1714252366584,-500.0,0.0004,31]
[323760657,1714252366608,-500.0,0.0004,31]
[323760658,1714252366632,-500.0,0.0004,31]
[323760659,1714252366657,-500.0,0.0004,31]
[323760660,1714252366682,-500.0,0.0004,31]
[323760661,1714252366706,-440.23344882,0.0004,31]
[323760662,1714252366731,-636.91,0.0004,31]
[323760663,1714252366757,-500.0,0.0004,31]
[323760664,1714252366781,-500.0,0.0004,31]
[323760665,1714252366806,-500.0,0.0004,31]
[323760666,1714252366830,-507.73764356,0.0004,31]
[323760667,1714252366854,-500.0,0.0004,31]
[323760668,1714252366878,-729.51,0.0004,31]
[323760669,1714252366903,-500.0,0.0004,31]
[323760670,1714252366927,-500.0,0.0004,31]
[323760671,1714252366951,-182.88631323,0.0004,31]
[323760672,1714252366974,-500.0,0.0004,31]
[323760673,1714252366999,-500.0,0.0004,31]
[323760674,1714252367025,-2360.47,0.0004,31]
[323760675,1714252367050,-500.0,0.0004,31]
[323760676,1714252367075,-500.0,0.0004,31]
[323760677,1714252367099,-500.0,0.0004,31]
[323760678,1714252367125,-500.0,0.0004,31]
[323760679,1714252367155,-2635.33,0.0004,31]
[323760680,1714252367179,-500.0,0.0004,31]
[323760681,1714252367206,-500.0,0.0004,31]
[323760682,1714252367231,-500.0,0.0004,31]
[323760683,1714252367255,-673.61,0.0004,31]
[323760684,1714252367280,-500.0,0.0004,31]
[323760685,1714252367306,-500.0,0.0004,31]
[323760686,1714252367331,-500.0,0.0004,31]
[323760687,1714252367356,-500.0,0.0004,31]
[323760688,1714252367381,-500.0,0.0004,31]
[323760689,1714252367406,-501.05954879,0.0004,31]
[323760690,1714252367431,-518.67656636,0.0004,31]
[323760691,1714252367455,-500.0,0.0004,31]
[323760692,1714252367579,-634.34,0.0004,31]
[323760693,1714252367604,-200.0,0.0004,30]
[323760694,1714252367631,-500.0,0.0004,31]
[323760695,1714252367656,-500.0,0.0004,31]
[323760696,1714252367679,-500.0,0.0004,31]
[323760697,1714252367705,-500.0,0.0004,31]
[323760698,1714252367729,-500.0,0.0004,31]
[323760699,1714252367754,-1090.0,0.0004,31]
[323760700,1714252367777,-500.0,0.0004,31]
[323760701,1714252367801,-907.87,0.0004,31]
[323760702,1714252367824,-500.0,0.0004,31]
[323760703,1714252367849,-500.0,0.0004,31]
[323760704,1714252367873,-500.0,0.0004,31]
[323760705,1714252367897,-19510.94,0.0004,31]
[323760706,1714252367921,-500.0,0.0004,31]
[323760707,1714252367944,-3151.11,0.0004,31]
[323760708,1714252367969,-500.0,0.0004,31]
[323760709,1714252367993,-500.0,0.0004,31]
[323760710,1714252368017,-691.87,0.0004,31]
[323760711,1714252368042,-500.0,0.0004,31]
[323760712,1714252368065,-500.0,0.0004,31]
[323760713,1714252368090,-779.19,0.0004,31]
[323760714,1714252368113,-569.83,0.0004,31]
[323760715,1714252368140,-500.0,0.0004,31]
[323760716,1714252368167,-500.0,0.0004,31]
[323760717,1714252368192,-500.0,0.0004,31]
[323760718,1714252368216,-500.0,0.0004,31]
[323760719,1714252368240,-500.0,0.0004,31]
[323760720,1714252368265,-894.89,0.0004,31]
[323760721,1714252368289,-500.0,0.0004,31]
[323760722,1714252368317,-500.0,0.0004,31]
[323760723,1714252368342,-387.82555739,0.0004,31]
[323760724,1714252368367,-500.0,0.0004,31]
[323760725,1714252368394,-2691.32,0.0004,31]
[323760726,1714252368422,-1601.64,0.0004,31]
[323760727,1714252368447,-500.0,0.0004,31]
[323760728,1714252368472,-506.29265999,0.0004,31]
[323760729,1714252368498,-2415.56,0.0004,31]
[323760730,1714252368526,-500.0,0.0004,31]
[323760731,1714252368553,-614.17,0.0004,31]
[323760732,1714252368578,-500.0,0.0004,31]